[Event "NJSK 2024 B"]
[Site "Groningen, Netherlands"]
[Date "2024.04.27"]
[Round "1.6"]
[White "Van Arendonk, Polle"]
[Black "Wink, Luka"]
[Result "1-0"]
[TimeControl "90min/40moves + 30min + 30sec/move"]
[WhiteElo "1914"]
[BlackElo "2082"]

1. e4 {[%clk 01:30:57]} {[%emt 00:00:03]} c5 {[%clk 01:30:26]} {[%emt
00:00:34]} 2. Nf3 {[%clk 01:31:22]} {[%emt 00:00:04]} e6 {[%clk 01:30:24]}
{[%emt 00:00:33]} 3. d4 {[%clk 01:31:48]} {[%emt 00:00:04]} cxd4 {[%clk
01:30:49]} {[%emt 00:00:05]} 4. Nxd4 {[%clk 01:32:15]} {[%emt 00:00:04]} Nf6
{[%clk 01:31:09]} {[%emt 00:00:10]} 5. Nc3 {[%clk 01:32:40]} {[%emt 00:00:05]}
Nc6 {[%clk 01:31:28]} {[%emt 00:00:10]} 6. Ndb5 {[%clk 01:31:45]} {[%emt
00:01:25]} d6 {[%clk 01:30:35]} {[%emt 00:01:23]} 7. Bf4 {[%clk 01:31:57]}
{[%emt 00:00:18]} e5 {[%clk 01:30:57]} {[%emt 00:00:08]} 8. Bg5 {[%clk
01:32:24]} {[%emt 00:00:03]} a6 {[%clk 01:31:14]} {[%emt 00:00:13]} 9. Na3
{[%clk 01:32:50]} {[%emt 00:00:04]} b5 {[%clk 01:31:31]} {[%emt 00:00:14]} 10.
Nd5 {[%clk 01:33:15]} {[%emt 00:00:06]} Be7 {[%clk 01:31:28]} {[%emt 00:00:32]}
11. Bxf6 {[%clk 01:33:41]} {[%emt 00:00:05]} Bxf6 {[%clk 01:31:50]} {[%emt
00:00:08]} 12. c3 {[%clk 01:34:07]} {[%emt 00:00:04]} O-O {[%clk 01:28:35]}
{[%emt 00:03:44]} 13. Nc2 {[%clk 01:31:57]} {[%emt 00:02:40]} Bg5 {[%clk
01:23:56]} {[%emt 00:05:08]} 14. h4 {[%clk 01:21:41]} {[%emt 00:10:47]} Bh6
{[%clk 01:24:17]} {[%emt 00:00:09]} 15. a4 {[%clk 01:21:36]} {[%emt 00:00:35]}
Rb8 {[%clk 01:10:46]} {[%emt 00:14:02]} 16. axb5 {[%clk 01:17:20]} {[%emt
00:04:46]} axb5 {[%clk 01:11:06]} {[%emt 00:00:10]} 17. g3 {[%clk 00:58:58]}
{[%emt 00:18:52]} Ne7 {[%clk 01:02:41]} {[%emt 00:08:54]} 18. Ncb4 {[%clk
00:56:29]} {[%emt 00:02:59]} Bb7 {[%clk 01:02:01]} {[%emt 00:01:10]} 19. Bg2
{[%clk 00:45:22]} {[%emt 00:11:37]} Bxd5 {[%clk 00:57:24]} {[%emt 00:05:05]} 20.
Nxd5 {[%clk 00:45:44]} {[%emt 00:00:09]} Nxd5 {[%clk 00:57:15]} {[%emt
00:00:39]} 21. Qxd5 {[%clk 00:46:03]} {[%emt 00:00:11]} Qb6 {[%clk 00:56:37]}
{[%emt 00:01:08]} 22. O-O {[%clk 00:40:00]} {[%emt 00:06:34]} Rbc8 {[%clk
00:55:34]} {[%emt 00:01:33]} 23. Rfd1 {[%clk 00:35:12]} {[%emt 00:05:18]} Rfd8
{[%clk 00:55:10]} {[%emt 00:00:55]} 24. Qb3 {[%clk 00:33:02]} {[%emt 00:02:40]}
g6 {[%clk 00:52:40]} {[%emt 00:03:00]} 25. Rd5 {[%clk 00:30:00]} {[%emt
00:03:32]} Rc5 {[%clk 00:49:06]} {[%emt 00:04:04]} 26. Rad1 {[%clk 00:26:27]}
{[%emt 00:04:03]} Rxd5 {[%clk 00:46:42]} {[%emt 00:02:54]} 27. Rxd5 {[%clk
00:26:42]} {[%emt 00:00:16]} b4 {[%clk 00:42:48]} {[%emt 00:04:23]} 28. Bf1
{[%clk 00:22:26]} {[%emt 00:04:46]} Rb8 {[%clk 00:33:50]} {[%emt 00:09:28]} 29.
Rb5 {[%clk 00:21:32]} {[%emt 00:01:23]} Qc7 {[%clk 00:33:47]} {[%emt 00:00:33]}
30. Rxb4 {[%clk 00:20:41]} {[%emt 00:01:22]} Rxb4 {[%clk 00:34:10]} {[%emt
00:00:06]} 31. Qxb4 {[%clk 00:21:04]} {[%emt 00:00:08]} Qc5 {[%clk 00:32:55]}
{[%emt 00:01:44]} 32. Qa4 {[%clk 00:20:16]} {[%emt 00:01:18]} Kg7 {[%clk
00:28:33]} {[%emt 00:04:52]} 33. Qc2 {[%clk 00:16:59]} {[%emt 00:03:46]} d5
{[%clk 00:23:49]} {[%emt 00:05:15]} 34. b4 {[%clk 00:17:09]} {[%emt 00:00:20]}
Qd6 {[%clk 00:23:52]} {[%emt 00:00:26]} 35. exd5 {[%clk 00:15:10]} {[%emt
00:02:29]} Qxd5 {[%clk 00:24:17]} {[%emt 00:00:05]} 36. c4 {[%clk 00:13:08]}
{[%emt 00:02:32]} Qd2 {[%clk 00:23:05]} {[%emt 00:01:42]} 37. Qe4 {[%clk
00:07:08]} {[%emt 00:06:30]} Qxb4 {[%clk 00:22:16]} {[%emt 00:01:19]} 38. Qxe5+
{[%clk 00:07:26]} {[%emt 00:00:12]} Kg8 {[%clk 00:22:12]} {[%emt 00:00:34]} 39.
c5 {[%clk 00:07:10]} {[%emt 00:00:47]} Bf8 {[%clk 00:21:22]} {[%emt 00:01:19]}
40. c6 {[%clk 00:07:14]} {[%emt 00:00:26]} Qd6 {[%clk 00:20:43]} {[%emt
00:01:09]} 41. Qe8 {[%clk 00:04:56]} {[%emt 00:02:48]} Kg7 {[%clk 00:17:37]}
{[%emt 00:03:36]} 42. Bc4 {[%clk 00:00:50]} {[%emt 00:04:37]} Qc7 {[%clk
00:16:25]} {[%emt 00:01:42]} 43. Bxf7 {[%clk 00:30:01]} {[%emt 00:01:18]} Bd6
{[%clk 00:41:51]} {[%emt 00:05:05]} 44. Qg8+ {[%clk 00:24:24]} {[%emt
00:06:07]} Kf6 {[%clk 00:39:14]} {[%emt 00:03:07]} 45. Bd5 {[%clk 00:24:37]}
{[%emt 00:00:16]} Qe7 {[%clk 00:37:14]} {[%emt 00:02:30]} 46. Qh8+ {[%clk
00:23:26]} {[%emt 00:01:42]} Qg7 {[%clk 00:37:10]} {[%emt 00:00:33]} 47. Qxg7+
{[%clk 00:16:28]} {[%emt 00:07:28]} Kxg7 {[%clk 00:37:33]} {[%emt 00:00:07]} 48.
Kg2 {[%clk 00:10:18]} {[%emt 00:06:40]} Kf6 {[%clk 00:36:37]} {[%emt 00:01:26]}
49. f4 {[%clk 00:10:39]} {[%emt 00:00:08]} Bc7 {[%clk 00:34:01]} {[%emt
00:03:06]} 50. Kf3 {[%clk 00:11:00]} {[%emt 00:00:09]} Bb6 {[%clk 00:33:35]}
{[%emt 00:00:56]} 51. g4 {[%clk 00:09:53]} {[%emt 00:01:37]} h6 {[%clk
00:32:58]} {[%emt 00:01:07]} 52. g5+ {[%clk 00:09:17]} {[%emt 00:01:06]} hxg5
{[%clk 00:33:19]} {[%emt 00:00:09]} 53. hxg5+ {[%clk 00:09:08]} {[%emt
00:00:40]} Ke7 {[%clk 00:33:07]} {[%emt 00:00:41]} 54. Kg4 {[%clk 00:08:20]}
{[%emt 00:01:18]} Kf8 {[%clk 00:32:45]} {[%emt 00:00:52]} 55. f5 {[%clk
00:07:56]} {[%emt 00:00:54]} gxf5+ {[%clk 00:32:44]} {[%emt 00:00:31]} 56. Kxf5
{[%clk 00:08:24]} {[%emt 00:00:02]} Kg7 {[%clk 00:32:48]} {[%emt 00:00:27]} 57.
g6 {[%clk 00:08:29]} {[%emt 00:00:26]} Bd8 {[%clk 00:32:39]} {[%emt 00:00:39]}
58. Be4 {[%clk 00:08:38]} {[%emt 00:00:21]} Bc7 {[%clk 00:32:15]} {[%emt
00:00:54]} 59. Ke6 {[%clk 00:09:02]} {[%emt 00:00:05]} Bb8 {[%clk 00:32:30]}
{[%emt 00:00:15]} 60. Kd7 {[%clk 00:09:26]} {[%emt 00:00:06]} Kf6 {[%clk
00:32:47]} {[%emt 00:00:13]} 61. c7 {[%clk 00:09:49]} {[%emt 00:00:07]} Bxc7
{[%clk 00:33:14]} {[%emt 00:00:03]} 62. Kxc7 {[%clk 00:10:13]} {[%emt
00:00:06]} Ke7 {[%clk 00:33:23]} {[%emt 00:00:21]} 63. Bd3 {[%clk 00:10:30]}
{[%emt 00:00:13]} Ke6 {[%clk 00:33:27]} {[%emt 00:00:25]} 64. Kd8 {[%clk
00:10:51]} {[%emt 00:00:09]} Kf6 {[%clk 00:33:54]} {[%emt 00:00:04]} 65. Ke8
{[%clk 00:11:13]} {[%emt 00:00:07]} Kg7 {[%clk 00:34:21]} {[%emt 00:00:03]} 66.
Ke7 {[%clk 00:11:32]} {[%emt 00:00:11]} 1-0

[Event "NJSK 2024 B"]
[Site "Groningen, Netherlands"]
[Date "2024.04.27"]
[Round "1.7"]
[White "Madularea, David"]
[Black "Lopes, Samuel"]
[Result "1-0"]
[TimeControl "90min/40moves + 30min + 30sec/move"]
[WhiteElo "2022"]
[BlackElo "1906"]

1. e4 {[%clk 01:30:57]} {[%emt 00:00:03]} c5 {[%clk 01:30:30]} {[%emt
00:00:30]} 2. Nf3 {[%clk 01:31:18]} {[%emt 00:00:09]} Nc6 {[%clk 01:30:42]}
{[%emt 00:00:18]} 3. d4 {[%clk 01:31:29]} {[%emt 00:00:19]} cxd4 {[%clk
01:30:54]} {[%emt 00:00:18]} 4. Nxd4 {[%clk 01:31:50]} {[%emt 00:00:09]} Nf6
{[%clk 01:31:08]} {[%emt 00:00:17]} 5. Nc3 {[%clk 01:32:14]} {[%emt 00:00:05]}
e5 {[%clk 01:31:16]} {[%emt 00:00:22]} 6. Ndb5 {[%clk 01:32:40]} {[%emt
00:00:05]} d6 {[%clk 01:31:22]} {[%emt 00:00:24]} 7. Nd5 {[%clk 01:32:25]}
{[%emt 00:00:44]} Nxd5 {[%clk 01:30:44]} {[%emt 00:01:09]} 8. exd5 {[%clk
01:32:22]} {[%emt 00:00:33]} Nb8 {[%clk 01:30:59]} {[%emt 00:00:15]} 9. a4
{[%clk 01:32:39]} {[%emt 00:00:12]} Be7 {[%clk 01:29:51]} {[%emt 00:01:39]} 10.
Bd2 {[%clk 01:32:56]} {[%emt 00:00:13]} a6 {[%clk 01:23:11]} {[%emt 00:07:11]}
11. Na3 {[%clk 01:33:14]} {[%emt 00:00:11]} a5 {[%clk 01:23:00]} {[%emt
00:00:42]} 12. Bb5+ {[%clk 01:33:24]} {[%emt 00:00:20]} Nd7 {[%clk 01:13:59]}
{[%emt 00:09:31]} 13. g4 {[%clk 01:02:47]} {[%emt 00:31:07]} O-O {[%clk
01:09:01]} {[%emt 00:05:28]} 14. Nc4 {[%clk 01:00:17]} {[%emt 00:02:59]} Nf6
{[%clk 01:03:16]} {[%emt 00:06:16]} 15. Ne3 {[%clk 01:00:08]} {[%emt 00:00:38]}
Ne4 {[%clk 01:02:03]} {[%emt 00:01:44]} 16. Bc1 {[%clk 00:43:42]} {[%emt
00:16:56]} Bh4 {[%clk 00:57:21]} {[%emt 00:05:11]} 17. O-O {[%clk 00:42:28]}
{[%emt 00:01:43]} g6 {[%clk 00:45:46]} {[%emt 00:12:06]} 18. f3 {[%clk
00:37:27]} {[%emt 00:05:31]} Nc5 {[%clk 00:40:52]} {[%emt 00:05:24]} 19. c3
{[%clk 00:35:33]} {[%emt 00:02:24]} Bd7 {[%clk 00:39:13]} {[%emt 00:02:10]} 20.
Nc4 {[%clk 00:24:23]} {[%emt 00:11:40]} Be7 {[%clk 00:30:57]} {[%emt 00:08:47]}
21. Bh6 {[%clk 00:15:50]} {[%emt 00:09:02]} Re8 {[%clk 00:31:00]} {[%emt
00:00:28]} 22. Bxd7 {[%clk 00:13:04]} {[%emt 00:03:16]} Nxd7 {[%clk 00:31:09]}
{[%emt 00:00:21]} 23. f4 {[%clk 00:13:06]} {[%emt 00:00:27]} Nb6 {[%clk
00:29:17]} {[%emt 00:02:22]} 24. Ne3 {[%clk 00:05:40]} {[%emt 00:07:56]} exf4
{[%clk 00:28:57]} {[%emt 00:00:50]} 25. Rxf4 {[%clk 00:05:15]} {[%emt
00:00:55]} Bg5 {[%clk 00:28:32]} {[%emt 00:00:55]} 26. Bxg5 {[%clk 00:04:52]}
{[%emt 00:00:53]} Qxg5 {[%clk 00:28:59]} {[%emt 00:00:03]} 27. Ng2 {[%clk
00:04:50]} {[%emt 00:00:32]} Nxd5 {[%clk 00:26:42]} {[%emt 00:02:48]} 28. Rd4
{[%clk 00:04:18]} {[%emt 00:01:01]} Ne3 {[%clk 00:25:03]} {[%emt 00:02:10]} 29.
Qf3 {[%clk 00:04:35]} {[%emt 00:00:13]} Nxg2 {[%clk 00:22:53]} {[%emt
00:02:40]} 30. Kxg2 {[%clk 00:04:55]} {[%emt 00:00:09]} Re3 {[%clk 00:21:37]}
{[%emt 00:01:46]} 31. Qxb7 {[%clk 00:03:44]} {[%emt 00:01:42]} Rae8 {[%clk
00:20:45]} {[%emt 00:01:22]} 32. Rf1 {[%clk 00:03:23]} {[%emt 00:00:50]} Re2+
{[%clk 00:17:49]} {[%emt 00:03:27]} 33. Kh1 {[%clk 00:03:48]} {[%emt 00:00:05]}
Qe7 {[%clk 00:08:40]} {[%emt 00:09:39]} 34. Qb3 {[%clk 00:01:54]} {[%emt
00:02:23]} Rxh2+ {[%clk 00:03:18]} {[%emt 00:05:53]} 35. Kxh2 {[%clk 00:02:17]}
{[%emt 00:00:07]} Qh4+ {[%clk 00:03:42]} {[%emt 00:00:06]} 36. Kg2 {[%clk
00:02:18]} {[%emt 00:00:28]} Re2+ {[%clk 00:03:47]} {[%emt 00:00:25]} 37. Kf3
{[%clk 00:02:40]} {[%emt 00:00:07]} Qe7 {[%clk 00:02:07]} {[%emt 00:02:11]} 38.
c4 {[%clk 00:02:11]} {[%emt 00:00:59]} Qe5 {[%clk 00:01:26]} {[%emt 00:01:11]}
39. Qd3 {[%clk 00:01:39]} {[%emt 00:01:02]} Rh2 {[%clk 00:01:36]} {[%emt
00:00:20]} 40. Qe4 {[%clk 00:01:19]} {[%emt 00:00:50]} Rh3+ {[%clk 00:00:41]}
{[%emt 00:01:25]} 41. Ke2 {[%clk 00:01:17]} {[%emt 00:00:32]} Rh2+ {[%clk
00:28:58]} {[%emt 00:02:13]} 42. Kd1 {[%clk 00:31:32]} {[%emt 00:00:15]} 1-0

[Event "NJSK 2024 B"]
[Site "Groningen, Netherlands"]
[Date "2024.04.27"]
[Round "1.8"]
[White "Fallaux, Storm"]
[Black "Zhu, Chenwu"]
[Result "1/2-1/2"]
[TimeControl "90min/40moves + 30min + 30sec/move"]
[WhiteElo "1905"]
[BlackElo "2020"]

1. e4 {[%clk 01:30:58]} {[%emt 00:00:02]} c5 {[%clk 01:30:56]} {[%emt
00:00:05]} 2. Nf3 {[%clk 01:31:22]} {[%emt 00:00:05]} d6 {[%clk 01:31:18]}
{[%emt 00:00:08]} 3. d4 {[%clk 01:31:46]} {[%emt 00:00:07]} cxd4 {[%clk
01:31:42]} {[%emt 00:00:06]} 4. Nxd4 {[%clk 01:32:09]} {[%emt 00:00:06]} Nf6
{[%clk 01:32:08]} {[%emt 00:00:04]} 5. Nc3 {[%clk 01:32:35]} {[%emt 00:00:05]}
g6 {[%clk 01:32:32]} {[%emt 00:00:06]} 6. Be3 {[%clk 01:32:52]} {[%emt
00:00:13]} Bg7 {[%clk 01:32:57]} {[%emt 00:00:05]} 7. f3 {[%clk 01:33:17]}
{[%emt 00:00:05]} O-O {[%clk 01:33:22]} {[%emt 00:00:05]} 8. Qd2 {[%clk
01:33:39]} {[%emt 00:00:08]} Nc6 {[%clk 01:33:47]} {[%emt 00:00:05]} 9. O-O-O
{[%clk 01:34:02]} {[%emt 00:00:07]} d5 {[%clk 01:34:11]} {[%emt 00:00:06]} 10.
Nxc6 {[%clk 01:34:27]} {[%emt 00:00:05]} bxc6 {[%clk 01:34:36]} {[%emt
00:00:06]} 11. Bh6 {[%clk 01:34:28]} {[%emt 00:00:28]} Bxh6 {[%clk 01:31:35]}
{[%emt 00:03:31]} 12. Qxh6 {[%clk 01:34:51]} {[%emt 00:00:07]} e5 {[%clk
01:29:53]} {[%emt 00:02:12]} 13. exd5 {[%clk 01:35:15]} {[%emt 00:00:06]} cxd5
{[%clk 01:23:05]} {[%emt 00:07:18]} 14. h4 {[%clk 01:34:33]} {[%emt 00:01:12]}
d4 {[%clk 01:03:34]} {[%emt 00:20:01]} 15. Qg5 {[%clk 01:32:41]} {[%emt
00:02:22]} Qe7 {[%clk 00:59:35]} {[%emt 00:04:29]} 16. Ne4 {[%clk 01:22:26]}
{[%emt 00:10:44]} Kg7 {[%clk 00:58:44]} {[%emt 00:01:21]} 17. Qxf6+ {[%clk
01:19:51]} {[%emt 00:03:05]} Qxf6 {[%clk 00:59:10]} {[%emt 00:00:05]} 18. Nxf6
{[%clk 01:20:14]} {[%emt 00:00:07]} Kxf6 {[%clk 00:59:37]} {[%emt 00:00:02]} 19.
f4 {[%clk 01:11:06]} {[%emt 00:09:38]} exf4 {[%clk 00:49:55]} {[%emt 00:10:13]}
20. Rxd4 {[%clk 01:10:09]} {[%emt 00:01:27]} Ke5 {[%clk 00:49:50]} {[%emt
00:00:34]} 21. c3 {[%clk 01:06:24]} {[%emt 00:04:15]} Bb7 {[%clk 00:49:12]}
{[%emt 00:01:09]} 22. Bd3 {[%clk 00:57:56]} {[%emt 00:08:58]} Bxg2 {[%clk
00:44:37]} {[%emt 00:05:04]} 23. Re1+ {[%clk 00:58:04]} {[%emt 00:00:21]} Kf6
{[%clk 00:45:04]} {[%emt 00:00:04]} 24. Rxf4+ {[%clk 00:58:24]} {[%emt
00:00:10]} Kg7 {[%clk 00:45:31]} {[%emt 00:00:03]} 25. Re7 {[%clk 00:44:17]}
{[%emt 00:14:36]} Bd5 {[%clk 00:37:04]} {[%emt 00:08:57]} 26. Bc4 {[%clk
00:42:08]} {[%emt 00:02:39]} Bxc4 {[%clk 00:36:41]} {[%emt 00:00:53]} 27. Rxc4
{[%emt 00:13:06]} Rfe8 {[%emt 00:00:04]} 28. Rd7 {[%emt 00:00:11]} Rf8 {[%emt
00:00:03]} 29. Re7 Rfe8 {[%emt 00:00:03]} 30. Rd7 {[%emt 00:00:02]} Re1+
1/2-1/2

[Event "NJSK 2024 B"]
[Site "Groningen, Netherlands"]
[Date "2024.04.28"]
[Round "2.1"]
[White "Van Batenburg, Mees"]
[Black "Smeets, Kobe"]
[Result "1/2-1/2"]
[TimeControl "90min/40moves + 30min + 30sec/move"]
[WhiteElo "2110"]
[BlackElo "2274"]

1. e4 {[%clk 01:30:26]} {[%emt 00:00:33]} e5 {[%clk 01:30:54]} {[%emt
00:00:07]} 2. Nf3 {[%clk 01:30:52]} {[%emt 00:00:04]} Nc6 {[%clk 01:31:19]}
{[%emt 00:00:05]} 3. Bc4 {[%clk 01:31:17]} {[%emt 00:00:05]} Nf6 {[%clk
01:31:45]} {[%emt 00:00:04]} 4. d3 {[%clk 01:31:42]} {[%emt 00:00:05]} Bc5
{[%clk 01:32:10]} {[%emt 00:00:05]} 5. c3 {[%clk 01:31:52]} {[%emt 00:00:20]}
d6 {[%clk 01:32:34]} {[%emt 00:00:06]} 6. O-O {[%clk 01:31:59]} {[%emt
00:00:22]} a5 {[%clk 01:33:00]} {[%emt 00:00:05]} 7. Re1 {[%clk 01:32:14]}
{[%emt 00:00:14]} Ba7 {[%clk 01:33:27]} {[%emt 00:00:05]} 8. Na3 {[%clk
01:32:26]} {[%emt 00:00:18]} h6 {[%clk 01:33:50]} {[%emt 00:00:07]} 9. Nb5
{[%clk 01:32:22]} {[%emt 00:00:33]} Bb6 {[%clk 01:34:14]} {[%emt 00:00:06]} 10.
Be3 {[%clk 01:32:36]} {[%emt 00:00:15]} Bxe3 {[%clk 01:34:29]} {[%emt
00:00:15]} 11. Rxe3 {[%clk 01:32:58]} {[%emt 00:00:08]} O-O {[%clk 01:34:22]}
{[%emt 00:00:38]} 12. h3 {[%clk 01:32:12]} {[%emt 00:01:16]} Re8 {[%clk
01:32:22]} {[%emt 00:02:30]} 13. Qc2 {[%clk 01:31:15]} {[%emt 00:01:27]} Ne7
{[%clk 01:32:34]} {[%emt 00:00:17]} 14. d4 {[%clk 01:30:29]} {[%emt 00:01:16]}
Ng6 {[%emt 00:03:14]} 15. Qb3 {[%clk 01:30:09]} {[%emt 00:00:34]} Rf8 {[%clk
01:20:48]} {[%emt 00:09:48]} 16. Rd1 {[%clk 01:26:18]} {[%emt 00:04:22]} Qe7
{[%clk 01:18:05]} {[%emt 00:03:12]} 17. a4 {[%clk 01:22:33]} {[%emt 00:04:15]}
Ne8 {[%clk 00:41:53]} {[%emt 00:36:42]} 18. dxe5 {[%clk 00:56:00]} {[%emt
00:27:03]} Nxe5 {[%clk 00:38:33]} {[%emt 00:03:50]} 19. Nxe5 {[%clk 00:51:01]}
{[%emt 00:05:29]} Qxe5 {[%clk 00:38:51]} {[%emt 00:00:12]} 20. Nd4 {[%clk
00:45:13]} {[%emt 00:06:18]} c6 {[%clk 00:27:38]} {[%emt 00:11:43]} 21. Qb6
{[%clk 00:41:33]} {[%emt 00:04:10]} Qh5 {[%clk 00:23:37]} {[%emt 00:04:31]} 22.
Be2 {[%clk 00:36:02]} {[%emt 00:06:02]} Qc5 {[%clk 00:23:48]} {[%emt 00:00:18]}
23. Qxc5 {[%clk 00:32:43]} {[%emt 00:03:49]} dxc5 {[%clk 00:24:17]} {[%emt
00:00:01]} 24. Nb3 {[%clk 00:28:09]} {[%emt 00:05:04]} b6 {[%clk 00:24:19]}
{[%emt 00:00:28]} 25. Nd2 {[%clk 00:26:06]} {[%emt 00:02:33]} Be6 {[%clk
00:18:05]} {[%emt 00:06:43]} 26. Nc4 {[%clk 00:20:58]} {[%emt 00:05:39]} b5
{[%clk 00:12:34]} {[%emt 00:06:01]} 27. axb5 {[%clk 00:18:50]} {[%emt
00:02:38]} cxb5 {[%clk 00:13:03]} {[%emt 00:00:01]} 28. Nb6 {[%clk 00:19:01]}
{[%emt 00:00:19]} Ra7 {[%clk 00:12:37]} {[%emt 00:00:56]} 29. Rd8 {[%clk
00:09:32]} {[%emt 00:09:58]} Nc7 {[%clk 00:10:51]} {[%emt 00:02:16]} 30. Red3
{[%clk 00:08:32]} {[%emt 00:01:31]} Rb7 {[%clk 00:08:18]} {[%emt 00:03:02]} 31.
R3d6 {[%clk 00:07:49]} {[%emt 00:01:13]} g5 {[%clk 00:01:06]} {[%emt 00:07:42]}
32. Nd5 {[%clk 00:07:15]} {[%emt 00:01:04]} c4 {[%clk 00:00:44]} {[%emt
00:00:52]} 33. Nf6+ {[%clk 00:05:20]} {[%emt 00:02:25]} Kg7 {[%clk 00:01:14]}
34. e5 {[%clk 00:05:29]} {[%emt 00:00:21]} Rb8 {[%clk 00:00:51]} {[%emt
00:00:52]} 35. Rxf8 {[%clk 00:05:40]} {[%emt 00:00:18]} Rxf8 {[%clk 00:01:13]}
{[%emt 00:00:09]} 36. Rc6 {[%clk 00:05:36]} {[%emt 00:00:34]} Na8 {[%clk
00:00:33]} {[%emt 00:01:11]} 37. Rc5 {[%clk 00:03:03]} {[%emt 00:03:03]} Rb8
{[%clk 00:00:41]} {[%emt 00:00:21]} 38. Bf3 {[%clk 00:03:11]} {[%emt 00:00:22]}
b4 {[%clk 00:00:54]} {[%emt 00:00:18]} 39. Rxa5 {[%clk 00:03:27]} {[%emt
00:00:14]} bxc3 {[%clk 00:01:05]} {[%emt 00:00:18]} 40. bxc3 {[%clk 00:03:36]}
{[%emt 00:00:21]} Nc7 {[%clk 00:01:11]} {[%emt 00:00:24]} 41. Rc5 {[%clk
00:23:56]} {[%emt 00:10:10]} Nb5 {[%clk 00:18:40]} {[%emt 00:13:01]} 42. Ne4
{[%clk 00:20:48]} {[%emt 00:03:38]} Na3 {[%clk 00:18:40]} {[%emt 00:00:30]} 43.
Bg4 {[%clk 00:19:56]} {[%emt 00:01:22]} Bxg4 {[%clk 00:07:54]} {[%emt
00:11:17]} 44. hxg4 {[%clk 00:20:19]} {[%emt 00:00:07]} Rb1+ {[%clk 00:03:28]}
{[%emt 00:04:56]} 45. Kh2 {[%clk 00:20:44]} {[%emt 00:00:05]} Rb5 {[%clk
00:03:10]} {[%emt 00:00:48]} 46. g3 {[%clk 00:12:38]} {[%emt 00:08:35]} Rxc5
{[%clk 00:03:36]} {[%emt 00:00:04]} 47. Nxc5 {[%clk 00:13:07]} {[%emt
00:00:01]} Nb5 {[%clk 00:04:05]} {[%emt 00:00:01]} 48. Na4 {[%clk 00:11:34]}
{[%emt 00:02:03]} f6 {[%clk 00:03:18]} {[%emt 00:01:17]} 49. exf6+ {[%clk
00:07:34]} {[%emt 00:04:30]} Kxf6 {[%clk 00:03:46]} {[%emt 00:00:01]} 50. f4
{[%clk 00:07:54]} {[%emt 00:00:10]} Nc7 {[%clk 00:03:20]} {[%emt 00:00:55]} 51.
Kg2 {[%clk 00:06:55]} {[%emt 00:01:30]} Nd5 {[%clk 00:01:54]} {[%emt 00:01:57]}
52. Kf3 {[%clk 00:07:17]} {[%emt 00:00:07]} Ke6 {[%clk 00:01:34]} {[%emt
00:00:49]} 53. Nc5+ {[%clk 00:02:46]} {[%emt 00:05:02]} Ke7 {[%clk 00:01:59]}
{[%emt 00:00:05]} 54. Ne4 {[%clk 00:02:31]} {[%emt 00:00:46]} gxf4 {[%clk
00:01:19]} {[%emt 00:01:10]} 55. gxf4 {[%clk 00:02:55]} {[%emt 00:00:05]} Ke6
{[%clk 00:01:13]} {[%emt 00:00:36]} 56. Kg3 {[%clk 00:02:21]} {[%emt 00:01:05]}
Ne3 {[%emt 00:01:21]} 57. Nd2 {[%clk 00:02:01]} Nd5 {[%clk 00:01:19]} {[%emt
00:00:23]} 58. Ne4 {[%clk 00:01:50]} {[%emt 00:00:42]} Ne3 {[%clk 00:01:48]} 59.
Nd2 {[%clk 00:01:11]} {[%emt 00:01:08]} Nd5 {[%clk 00:02:16]} {[%emt 00:00:01]}
60. Nb1 {[%clk 00:01:26]} {[%emt 00:00:16]} Ne3 {[%clk 00:01:54]} {[%emt
00:00:52]} 61. Na3 {[%clk 00:01:16]} {[%emt 00:00:41]} Nd5 {[%clk 00:00:42]}
{[%emt 00:01:42]} 62. Nb5 {[%clk 00:01:38]} {[%emt 00:00:08]} Nf6 {[%clk
00:00:34]} {[%emt 00:00:38]} 63. Kf3 {[%clk 00:01:15]} {[%emt 00:00:54]} Nd5
{[%clk 00:00:43]} {[%emt 00:00:21]} 64. Nd4+ {[%clk 00:00:37]} {[%emt
00:01:08]} Kf7 {[%clk 00:01:02]} {[%emt 00:00:11]} 65. Nf5 {[%clk 00:00:36]}
{[%emt 00:00:31]} Kg6 {[%clk 00:01:19]} {[%emt 00:00:13]} 66. Ne3 {[%clk
00:00:33]} {[%emt 00:00:33]} Nxc3 {[%clk 00:01:43]} {[%emt 00:00:06]} 67. Nxc4
{[%clk 00:00:59]} {[%emt 00:00:03]} Nd5 {[%emt 00:00:37]} 68. Kg3 {[%clk
00:00:57]} {[%emt 00:00:32]} Kf6 {[%clk 00:01:38]} {[%emt 00:00:29]} 69. Nd6
{[%clk 00:01:04]} {[%emt 00:00:23]} Ne7 {[%clk 00:01:18]} {[%emt 00:00:50]} 70.
Ne4+ {[%clk 00:01:16]} {[%emt 00:00:19]} Kg6 {[%clk 00:01:04]} {[%emt
00:00:44]} 71. Kh4 {[%clk 00:01:23]} {[%emt 00:00:23]} Nf5+ {[%clk 00:01:00]}
{[%emt 00:00:34]} 72. Kh3 {[%clk 00:01:36]} {[%emt 00:00:17]} Nd4 {[%clk
00:01:12]} {[%emt 00:00:18]} 73. Kg3 {[%clk 00:01:37]} {[%emt 00:00:29]} h5
{[%clk 00:00:48]} {[%emt 00:00:54]} 74. g5 {[%clk 00:00:40]} {[%emt 00:01:26]}
Ne6 {[%clk 00:01:12]} {[%emt 00:00:06]} 75. Kf3 {[%clk 00:00:47]} {[%emt
00:00:24]} Nd4+ {[%clk 00:01:36]} {[%emt 00:00:05]} 76. Kg3 {[%clk 00:00:53]}
{[%emt 00:00:24]} Ne6 {[%clk 00:02:02]} {[%emt 00:00:04]} 77. Kf3 {[%clk
00:00:59]} {[%emt 00:00:24]} Nd4+ {[%clk 00:02:31]} {[%emt 00:00:02]} 78. Ke3
{[%clk 00:00:49]} {[%emt 00:00:40]} Ne6 {[%clk 00:02:53]} {[%emt 00:00:07]} 79.
Kf3 {[%clk 00:00:54]} {[%emt 00:00:25]} 1/2-1/2